[Event "Late-Titled-Tuesday-Blitz-May-07-2024"]
[Site "Chess.com"]
[Date "2024.05.07"]
[Round "11"]
[White "Reyson01"]
[Black "Oleg_Papayan"]
[Result "0-1"]
[WhiteElo "2517"]
[BlackElo "2641"]
[TimeControl "180+1"]
[EndTime "16:05:18 PDT"]
[Termination "Oleg_Papayan won by resignation"]

1. e4 {[%clk 0:03:00.9]} 1... d5 {[%clk 0:02:56.4]} 2. exd5 {[%clk 0:03:00.6]}
2... Qxd5 {[%clk 0:02:55.6]} 3. Nc3 {[%clk 0:02:58.8]} 3... Qd8 {[%clk
0:02:56.5]} 4. Bc4 {[%clk 0:02:57.9]} 4... c6 {[%clk 0:02:57.4]} 5. Nf3 {[%clk
0:02:57.1]} 5... Bf5 {[%clk 0:02:57.5]} 6. O-O {[%clk 0:02:56]} 6... e6 {[%clk
0:02:57.5]} 7. d4 {[%clk 0:02:54.8]} 7... Be7 {[%clk 0:02:57.8]} 8. Bf4 {[%clk
0:02:54.3]} 8... Nf6 {[%clk 0:02:57.7]} 9. a4 {[%clk 0:02:50.2]} 9... a5 {[%clk
0:02:57.6]} 10. Nh4 {[%clk 0:02:45.3]} 10... Bg4 {[%clk 0:02:57.4]} 11. f3
{[%clk 0:02:31.1]} 11... Bh5 {[%clk 0:02:57.2]} 12. g4 {[%clk 0:02:31.3]} 12...
Bg6 {[%clk 0:02:54]} 13. Nxg6 {[%clk 0:02:31.8]} 13... hxg6 {[%clk 0:02:54.9]}
14. Ne2 {[%clk 0:02:26.6]} 14... Qb6 {[%clk 0:02:44.5]} 15. c3 {[%clk
0:02:24.5]} 15... Nd5 {[%clk 0:02:44.8]} 16. Bxd5 {[%clk 0:02:22.9]} 16... cxd5
{[%clk 0:02:42.5]} 17. Qd2 {[%clk 0:02:16.6]} 17... Nd7 {[%clk 0:02:38.8]} 18.
Nc1 {[%clk 0:02:12.5]} 18... Bd6 {[%clk 0:02:17]} 19. Nd3 {[%clk 0:02:11.1]}
19... Rc8 {[%clk 0:02:16.8]} 20. Bxd6 {[%clk 0:02:05.1]} 20... Qxd6 {[%clk
0:02:17.7]} 21. Qf4 {[%clk 0:02:05]} 21... Qxf4 {[%clk 0:02:09.8]} 22. Nxf4
{[%clk 0:02:05.9]} 22... Ke7 {[%clk 0:02:03.8]} 23. Rfe1 {[%clk 0:02:04.5]}
23... Kd6 {[%clk 0:02:03.2]} 24. Kg2 {[%clk 0:01:59.5]} 24... Rc6 {[%clk
0:01:58.6]} 25. Nd3 {[%clk 0:01:56]} 25... g5 {[%clk 0:01:53.4]} 26. Ra3 {[%clk
0:01:45.9]} 26... Rb6 {[%clk 0:01:51.4]} 27. b4 {[%clk 0:01:44.9]} 27... axb4
{[%clk 0:01:46.8]} 28. cxb4 {[%clk 0:01:42.5]} 28... Rc6 {[%clk 0:01:40.3]} 29.
Nc5 {[%clk 0:01:34]} 29... b6 {[%clk 0:01:34.5]} 30. b5 {[%clk 0:00:52.9]} 30...
Rc7 {[%clk 0:01:32.2]} 31. Nxd7 {[%clk 0:00:53.3]} 31... Rc2+ {[%clk 0:01:31.1]}
32. Kg3 {[%clk 0:00:37.6]} 32... Rcxh2 {[%clk 0:01:21.8]} 0-1

[Event "Late-Titled-Tuesday-Blitz-May-07-2024"]
[Site "Chess.com"]
[Date "2024.05.07"]
[Round "11"]
[White "Axf7"]
[Black "Pidzsy"]
[Result "1-0"]
[WhiteElo "2111"]
[BlackElo "2578"]
[TimeControl "180+1"]
[EndTime "16:05:23 PDT"]
[Termination "Axf7 won by checkmate"]

1. e4 {[%clk 0:03:00.9]} 1... g6 {[%clk 0:02:56.1]} 2. d4 {[%clk 0:03:00.8]}
2... Bg7 {[%clk 0:02:56.5]} 3. Nc3 {[%clk 0:03:00.9]} 3... d6 {[%clk 0:02:54.9]}
4. f4 {[%clk 0:03:00.9]} 4... e6 {[%clk 0:02:54.7]} 5. Nf3 {[%clk 0:03:00.9]}
5... Ne7 {[%clk 0:02:55.3]} 6. Be3 {[%clk 0:03:00.5]} 6... d5 {[%clk 0:02:55.7]}
7. e5 {[%clk 0:02:59.9]} 7... b6 {[%clk 0:02:53.6]} 8. Qd2 {[%clk 0:02:59]} 8...
Ba6 {[%clk 0:02:53.2]} 9. Bxa6 {[%clk 0:02:50.6]} 9... Nxa6 {[%clk 0:02:54.1]}
10. O-O-O {[%clk 0:02:50.7]} 10... c5 {[%clk 0:02:52.8]} 11. g4 {[%clk
0:02:43.9]} 11... c4 {[%clk 0:02:50.2]} 12. Nb5 {[%clk 0:02:20.3]} 12... Nc8
{[%clk 0:02:41.4]} 13. f5 {[%clk 0:02:18.8]} 13... Qd7 {[%clk 0:02:41.9]} 14. a4
{[%clk 0:02:07.2]} 14... Nc7 {[%clk 0:02:37.7]} 15. Nxc7+ {[%clk 0:02:04.7]}
15... Qxc7 {[%clk 0:02:38.6]} 16. fxe6 {[%clk 0:02:03.7]} 16... fxe6 {[%clk
0:02:38]} 17. Ng5 {[%clk 0:01:52.2]} 17... Qd7 {[%clk 0:02:38.1]} 18. Rdf1
{[%clk 0:01:40]} 18... h6 {[%clk 0:02:36.6]} 19. Nf7 {[%clk 0:01:37.7]} 19...
Rf8 {[%clk 0:02:34.1]} 20. Nxh6 {[%clk 0:01:14.1]} 20... Qxa4 {[%clk 0:02:29.9]}
21. Rxf8+ {[%clk 0:01:12.9]} 21... Bxf8 {[%clk 0:02:28.7]} 22. Kb1 {[%clk
0:01:04.3]} 22... Ne7 {[%clk 0:02:19.6]} 23. Rf1 {[%clk 0:00:58]} 23... O-O-O
{[%clk 0:02:15.5]} 24. Nf7 {[%clk 0:00:57.5]} 24... Nc6 {[%clk 0:02:06.1]} 25.
c3 {[%clk 0:00:38.8]} 25... Re8 {[%clk 0:01:59.1]} 26. Bh6 {[%clk 0:00:35]}
26... Bxh6 {[%clk 0:01:48.3]} 27. Nd6+ {[%clk 0:00:33.2]} 27... Kb8 {[%clk
0:01:41.9]} 28. Qxh6 {[%clk 0:00:32.3]} 28... Rd8 {[%clk 0:01:31.4]} 29. Qg7
{[%clk 0:00:25.7]} 29... Na5 {[%clk 0:01:30.1]} 30. Qe7 {[%clk 0:00:21.7]} 30...
Qd7 {[%clk 0:01:23.7]} 31. Qxd7 {[%clk 0:00:18.9]} 31... Rxd7 {[%clk 0:01:23.9]}
32. Rf8+ {[%clk 0:00:19.1]} 32... Kc7 {[%clk 0:01:21.4]} 33. Rc8# {[%clk
0:00:15.9]} 1-0

[Event "Late-Titled-Tuesday-Blitz-May-07-2024"]
[Site "Chess.com"]
[Date "2024.05.07"]
[Round "11"]
[White "Hilary46"]
[Black "Flaccidmoves"]
[Result "1-0"]
[WhiteElo "2677"]
[BlackElo "2374"]
[TimeControl "180+1"]
[EndTime "16:05:37 PDT"]
[Termination "Hilary46 won by resignation"]

1. e4 {[%clk 0:02:54.2]} 1... c5 {[%clk 0:02:58.5]} 2. Nf3 {[%clk 0:02:53.8]}
2... g6 {[%clk 0:02:57]} 3. d4 {[%clk 0:02:51.9]} 3... cxd4 {[%clk 0:02:57.9]}
4. Nxd4 {[%clk 0:02:52.1]} 4... Nf6 {[%clk 0:02:57.5]} 5. Nc3 {[%clk 0:02:50.9]}
5... Bg7 {[%clk 0:02:37.2]} 6. e5 {[%clk 0:02:38.9]} 6... Ng8 {[%clk 0:02:36.8]}
7. Bf4 {[%clk 0:02:28.9]} 7... Nc6 {[%clk 0:02:32.2]} 8. Nxc6 {[%clk 0:02:26.5]}
8... bxc6 {[%clk 0:02:29.2]} 9. Bc4 {[%clk 0:02:25.9]} 9... f6 {[%clk
0:02:07.2]} 10. Qe2 {[%clk 0:02:14.4]} 10... fxe5 {[%clk 0:02:01.9]} 11. Bxe5
{[%clk 0:02:14]} 11... Nf6 {[%clk 0:01:57.7]} 12. O-O-O {[%clk 0:02:14]} 12...
e6 {[%clk 0:01:46.4]} 13. Bd6 {[%clk 0:01:46.1]} 13... Kf7 {[%clk 0:01:32.3]}
14. Rhe1 {[%clk 0:01:39.9]} 14... Re8 {[%clk 0:01:29.8]} 15. g4 {[%clk
0:01:32.6]} 15... Bb7 {[%clk 0:01:11.3]} 16. h4 {[%clk 0:01:30.5]} 16... Nd5
{[%clk 0:01:05.8]} 17. Ne4 {[%clk 0:01:26.3]} 17... Qb6 {[%clk 0:00:49]} 18. Bb3
{[%clk 0:01:21.2]} 18... Kg8 {[%clk 0:00:46.3]} 19. h5 {[%clk 0:01:19.5]} 19...
a5 {[%clk 0:00:40]} 20. Bc5 {[%clk 0:01:13.1]} 20... Qb5 {[%clk 0:00:20.1]} 21.
Qxb5 {[%clk 0:01:13]} 21... cxb5 {[%clk 0:00:20.1]} 22. Nd6 {[%clk 0:01:13.9]}
22... Bc6 {[%clk 0:00:19]} 23. Nxe8 {[%clk 0:01:13.1]} 23... Rxe8 {[%clk
0:00:19.9]} 24. Bxd5 {[%clk 0:01:12.5]} 24... Rc8 {[%clk 0:00:11.5]} 25. Bxc6
{[%clk 0:01:12.2]} 25... Rxc6 {[%clk 0:00:12.4]} 26. Bd4 {[%clk 0:01:12.5]}
26... Bh6+ {[%clk 0:00:11.9]} 27. Kb1 {[%clk 0:01:11.5]} 27... gxh5 {[%clk
0:00:11]} 28. gxh5 {[%clk 0:01:12.4]} 28... Kf7 {[%clk 0:00:10.7]} 29. Be3
{[%clk 0:01:10.7]} 29... Bg7 {[%clk 0:00:10.4]} 30. Rxd7+ {[%clk 0:01:10.6]} 1-0

[Event "Late-Titled-Tuesday-Blitz-May-07-2024"]
[Site "Chess.com"]
[Date "2024.05.07"]
[Round "11"]
[White "simaopdias"]
[Black "Fore_Man"]
[Result "0-1"]
[WhiteElo "2264"]
[BlackElo "2271"]
[TimeControl "180+1"]
[EndTime "16:05:46 PDT"]
[Termination "Fore_Man won by resignation"]

1. e4 {[%clk 0:03:00]} 1... e6 {[%clk 0:02:59]} 2. d4 {[%clk 0:02:59.5]} 2... d5
{[%clk 0:02:59.9]} 3. e5 {[%clk 0:03:00.1]} 3... c5 {[%clk 0:03:00]} 4. c3
{[%clk 0:03:01]} 4... Qa5 {[%clk 0:03:00.5]} 5. Nf3 {[%clk 0:02:59.4]} 5... cxd4
{[%clk 0:03:00]} 6. Qxd4 {[%clk 0:02:59.3]} 6... Nc6 {[%clk 0:02:59.3]} 7. Qg4
{[%clk 0:02:56.4]} 7... f6 {[%clk 0:02:52.5]} 8. Bf4 {[%clk 0:02:47.2]} 8...
Nge7 {[%clk 0:02:20.1]} 9. Nbd2 {[%clk 0:02:25]} 9... Ng6 {[%clk 0:02:16.3]} 10.
Qh5 {[%clk 0:02:24.8]} 10... Qc7 {[%clk 0:01:22.7]} 11. Bd3 {[%clk 0:02:15.2]}
11... Qf7 {[%clk 0:01:22.5]} 12. exf6 {[%clk 0:02:11.1]} 12... Nxf4 {[%clk
0:01:14.8]} 13. Qxf7+ {[%clk 0:02:01.2]} 13... Kxf7 {[%clk 0:01:15.7]} 14. fxg7
{[%clk 0:02:00.6]} 14... Nxd3+ {[%clk 0:01:12.6]} 15. Kf1 {[%clk 0:01:56]} 15...
Bxg7 {[%clk 0:01:07.8]} 16. h4 {[%clk 0:01:37.4]} 16... Nxb2 {[%clk 0:01:02.5]}
17. Rb1 {[%clk 0:01:37]} 17... Bxc3 {[%clk 0:00:59.4]} 18. Nb3 {[%clk
0:01:30.8]} 18... b6 {[%clk 0:00:55.7]} 19. Ng5+ {[%clk 0:01:24.7]} 19... Ke7
{[%clk 0:00:53.3]} 20. Nc1 {[%clk 0:01:22]} 20... Ba6+ {[%clk 0:00:50]} 21. Kg1
{[%clk 0:01:21.7]} 21... h6 {[%clk 0:00:46.6]} 22. Nf3 {[%clk 0:01:20.1]} 22...
Ne5 {[%clk 0:00:44.4]} 23. Nh2 {[%clk 0:01:17.4]} 23... Nbd3 {[%clk 0:00:39.3]}
24. Ne2 {[%clk 0:01:14.2]} 24... Rhg8 {[%clk 0:00:33.7]} 25. Nxc3 {[%clk
0:01:06]} 25... Rac8 {[%clk 0:00:26.6]} 26. Nd1 {[%clk 0:01:04.5]} 26... Rc1
{[%clk 0:00:23.8]} 27. Rxc1 {[%clk 0:01:04.6]} 27... Nxc1 {[%clk 0:00:24.7]} 28.
a4 {[%clk 0:01:02.8]} 28... Ne2+ {[%clk 0:00:24.4]} 29. Kf1 {[%clk 0:01:02.9]}
29... Ng3+ {[%clk 0:00:25.1]} 0-1

[Event "Late-Titled-Tuesday-Blitz-May-07-2024"]
[Site "Chess.com"]
[Date "2024.05.07"]
[Round "11"]
[White "Slovafn"]
[Black "miraitrunks"]
[Result "1-0"]
[WhiteElo "2410"]
[BlackElo "2250"]
[TimeControl "180+1"]
[EndTime "16:05:50 PDT"]
[Termination "Slovafn won on time"]

1. Nf3 {[%clk 0:03:00.9]} 1... c5 {[%clk 0:02:01.8]} 2. c4 {[%clk 0:02:59.1]}
2... Nc6 {[%clk 0:01:48.7]} 3. g3 {[%clk 0:03:00]} 3... g6 {[%clk 0:01:47.3]} 4.
Bg2 {[%clk 0:03:00.9]} 4... Bg7 {[%clk 0:01:46.9]} 5. O-O {[%clk 0:03:01.8]}
5... d6 {[%clk 0:01:23.8]} 6. Nc3 {[%clk 0:03:01.4]} 6... e5 {[%clk 0:01:21.3]}
7. d3 {[%clk 0:03:01.9]} 7... Be6 {[%clk 0:01:21]} 8. Ng5 {[%clk 0:02:54]} 8...
Nge7 {[%clk 0:01:20]} 9. Nxe6 {[%clk 0:02:53]} 9... fxe6 {[%clk 0:01:19.1]} 10.
Bh3 {[%clk 0:02:53.9]} 10... Nf5 {[%clk 0:01:17.3]} 11. Ne4 {[%clk 0:02:42.8]}
11... O-O {[%clk 0:01:15.1]} 12. Bg5 {[%clk 0:02:43.4]} 12... Qd7 {[%clk
0:01:13.1]} 13. a3 {[%clk 0:02:36.6]} 13... h6 {[%clk 0:01:10.1]} 14. Bd2 {[%clk
0:02:36.6]} 14... Ncd4 {[%clk 0:01:08.1]} 15. b4 {[%clk 0:02:35.1]} 15... b6
{[%clk 0:01:07.8]} 16. Rb1 {[%clk 0:02:32.9]} 16... d5 {[%clk 0:01:06.2]} 17.
cxd5 {[%clk 0:02:31.4]} 17... exd5 {[%clk 0:01:07.1]} 18. Nc3 {[%clk 0:02:32.1]}
18... cxb4 {[%clk 0:00:56.5]} 19. axb4 {[%clk 0:02:32.4]} 19... Qd6 {[%clk
0:00:47.5]} 20. e3 {[%clk 0:02:24.4]} 20... Ne6 {[%clk 0:00:38.6]} 21. Qb3
{[%clk 0:02:21.2]} 21... Rad8 {[%clk 0:00:37]} 22. Ra1 {[%clk 0:01:57.3]} 22...
Rf7 {[%clk 0:00:21]} 23. Ra2 {[%clk 0:01:34]} 23... Ng5 {[%clk 0:00:20]} 24. Bg2
{[%clk 0:01:33.4]} 24... d4 {[%clk 0:00:15.3]} 25. Nb5 {[%clk 0:01:27.5]} 25...
Qf6 {[%clk 0:00:11.1]} 26. Bd5 {[%clk 0:01:10.7]} 26... dxe3 {[%clk 0:00:07.7]}
27. fxe3 {[%clk 0:01:08.1]} 1-0

[Event "Late-Titled-Tuesday-Blitz-May-07-2024"]
[Site "Chess.com"]
[Date "2024.05.07"]
[Round "11"]
[White "Airquake"]
[Black "sofaceindisguise"]
[Result "0-1"]
[WhiteElo "2849"]
[BlackElo "2754"]
[TimeControl "180+1"]
[EndTime "16:05:51 PDT"]
[Termination "sofaceindisguise won by resignation"]

1. e4 {[%clk 0:03:00.9]} 1... e5 {[%clk 0:02:56.7]} 2. Nf3 {[%clk 0:03:01.3]}
2... Nc6 {[%clk 0:02:57]} 3. Bb5 {[%clk 0:03:01.4]} 3... a6 {[%clk 0:02:56]} 4.
Ba4 {[%clk 0:03:01.6]} 4... Nf6 {[%clk 0:02:56.6]} 5. d3 {[%clk 0:03:00.8]} 5...
b5 {[%clk 0:02:55.1]} 6. Bb3 {[%clk 0:03:00]} 6... Bc5 {[%clk 0:02:55.6]} 7. c3
{[%clk 0:02:59.4]} 7... d6 {[%clk 0:02:54.5]} 8. h3 {[%clk 0:02:52.3]} 8... O-O
{[%clk 0:02:49.5]} 9. O-O {[%clk 0:02:50.4]} 9... Bb6 {[%clk 0:02:40.6]} 10. Bg5
{[%clk 0:02:48.1]} 10... h6 {[%clk 0:02:39.4]} 11. Bh4 {[%clk 0:02:48.2]} 11...
Be6 {[%clk 0:02:35.3]} 12. Nbd2 {[%clk 0:02:47.4]} 12... Nb8 {[%clk 0:02:20.7]}
13. d4 {[%clk 0:02:45]} 13... Bxb3 {[%clk 0:02:17.9]} 14. axb3 {[%clk
0:02:44.1]} 14... Nbd7 {[%clk 0:02:17.7]} 15. b4 {[%clk 0:02:32.9]} 15... Re8
{[%clk 0:02:17.3]} 16. dxe5 {[%clk 0:02:17.5]} 16... dxe5 {[%clk 0:02:08.8]} 17.
Qe2 {[%clk 0:02:05.5]} 17... c5 {[%clk 0:02:05.2]} 18. bxc5 {[%clk 0:02:02.5]}
18... Nxc5 {[%clk 0:02:05.4]} 19. Rfd1 {[%clk 0:02:01.9]} 19... Qd3 {[%clk
0:02:00]} 20. Kf1 {[%clk 0:01:27.9]} 20... Qxe2+ {[%clk 0:01:52.3]} 21. Kxe2
{[%clk 0:01:27.4]} 21... Nfxe4 {[%clk 0:01:52.9]} 22. b4 {[%clk 0:01:15.3]}
22... Nxc3+ {[%clk 0:01:47.9]} 23. Kf1 {[%clk 0:01:08.8]} 23... Nd3 {[%clk
0:01:39.3]} 24. Ra3 {[%clk 0:01:05.6]} 24... Nxd1 {[%clk 0:01:36.1]} 25. Rxd3
{[%clk 0:01:05.5]} 25... f6 {[%clk 0:01:33]} 26. Rb3 {[%clk 0:00:39]} 26... Rec8
{[%clk 0:01:29.5]} 27. Ne4 {[%clk 0:00:36.8]} 27... Rc2 {[%clk 0:01:21.8]} 28.
Ke1 {[%clk 0:00:30.8]} 28... Rd8 {[%clk 0:01:20.4]} 29. Nfd2 {[%clk 0:00:28.6]}
29... Nxf2 {[%clk 0:01:15.7]} 30. Bxf2 {[%clk 0:00:18.3]} 30... Bxf2+ {[%clk
0:01:15.3]} 31. Kxf2 {[%clk 0:00:18.2]} 31... Rdxd2+ {[%clk 0:01:15.2]} 32. Nxd2
{[%clk 0:00:19.1]} 32... Rxd2+ {[%clk 0:01:16.1]} 33. Kf3 {[%clk 0:00:20]} 33...
Rd4 {[%clk 0:01:15.6]} 34. Rc3 {[%clk 0:00:19.5]} 34... Rxb4 {[%clk 0:01:15.6]}
35. Rc8+ {[%clk 0:00:19.7]} 35... Kh7 {[%clk 0:01:14.5]} 36. Ra8 {[%clk
0:00:19.8]} 36... Rf4+ {[%clk 0:01:13.8]} 37. Kg3 {[%clk 0:00:20]} 37... Ra4
{[%clk 0:01:14.2]} 38. h4 {[%clk 0:00:20.3]} 38... h5 {[%clk 0:01:14.9]} 39. Ra7
{[%clk 0:00:20.1]} 39... Kg6 {[%clk 0:01:15.3]} 40. Kh3 {[%clk 0:00:20.8]} 40...
b4 {[%clk 0:01:16]} 41. g3 {[%clk 0:00:21.7]} 41... a5 {[%clk 0:01:16.4]} 42.
Rb7 {[%clk 0:00:22.3]} 42... Ra3 {[%clk 0:01:16.6]} 0-1

[Event "Late-Titled-Tuesday-Blitz-May-07-2024"]
[Site "Chess.com"]
[Date "2024.05.07"]
[Round "11"]
[White "katharinareinecke"]
[Black "lilylg"]
[Result "0-1"]
[WhiteElo "1929"]
[BlackElo "2210"]
[TimeControl "180+1"]
[EndTime "16:05:52 PDT"]
[Termination "lilylg won by resignation"]

1. e4 {[%clk 0:03:00.9]} 1... c6 {[%clk 0:02:48.2]} 2. Nf3 {[%clk 0:02:59.5]}
2... d5 {[%clk 0:02:48.4]} 3. d3 {[%clk 0:02:59.6]} 3... dxe4 {[%clk 0:02:45.9]}
4. dxe4 {[%clk 0:02:59.3]} 4... Qxd1+ {[%clk 0:02:45.6]} 5. Kxd1 {[%clk
0:03:00.2]} 5... Bg4 {[%clk 0:02:44.6]} 6. Be2 {[%clk 0:03:00.2]} 6... Nd7
{[%clk 0:02:42.8]} 7. Ne1 {[%clk 0:03:00]} 7... Bxe2+ {[%clk 0:02:32.6]} 8. Kxe2
{[%clk 0:03:00.9]} 8... e5 {[%clk 0:02:28]} 9. Nd3 {[%clk 0:02:59.2]} 9... Ngf6
{[%clk 0:02:27.7]} 10. f3 {[%clk 0:02:59.1]} 10... O-O-O {[%clk 0:02:26.1]} 11.
Be3 {[%clk 0:02:58.8]} 11... Bd6 {[%clk 0:02:21.2]} 12. Nd2 {[%clk 0:02:57.3]}
12... b6 {[%clk 0:02:16.8]} 13. a4 {[%clk 0:02:54]} 13... Bc7 {[%clk 0:02:15.5]}
14. a5 {[%clk 0:02:44.3]} 14... Kb7 {[%clk 0:02:06.7]} 15. axb6 {[%clk
0:02:42.3]} 15... axb6 {[%clk 0:02:06.7]} 16. Nc4 {[%clk 0:02:37.2]} 16... Ra8
{[%clk 0:02:02.7]} 17. b3 {[%clk 0:02:29.2]} 17... h6 {[%clk 0:01:59.4]} 18. h4
{[%clk 0:02:22.4]} 18... Nh5 {[%clk 0:01:54.7]} 19. Kf2 {[%clk 0:02:17.3]} 19...
b5 {[%clk 0:01:36.9]} 20. Nd2 {[%clk 0:02:10.8]} 20... Bb6 {[%clk 0:01:37]} 21.
Bxb6 {[%clk 0:02:00.8]} 21... Kxb6 {[%clk 0:01:37.3]} 22. g4 {[%clk 0:01:57.5]}
22... Nhf6 {[%clk 0:01:35.4]} 23. g5 {[%clk 0:01:45.5]} 23... Nh5 {[%clk
0:01:28.4]} 24. gxh6 {[%clk 0:01:38.3]} 24... gxh6 {[%clk 0:01:26.7]} 25. Rxa8
{[%clk 0:01:13.8]} 25... Rxa8 {[%clk 0:01:25.1]} 26. Nf1 {[%clk 0:01:13.9]}
26... Ra2 {[%clk 0:01:17.1]} 27. Ne3 {[%clk 0:01:13.7]} 27... Nf4 {[%clk
0:01:11.5]} 28. Rd1 {[%clk 0:01:00.3]} 28... Nxd3+ {[%clk 0:01:04.3]} 29. Rxd3
{[%clk 0:00:59.8]} 29... Nc5 {[%clk 0:01:05]} 30. Rd6 {[%clk 0:00:56.7]} 30...
Nxb3 {[%clk 0:00:59]} 31. Rxh6 {[%clk 0:00:56.4]} 31... Nd4 {[%clk 0:00:55.3]}
32. Rh7 {[%clk 0:00:55.1]} 32... Nxc2 {[%clk 0:00:52]} 33. Nxc2 {[%clk
0:00:55.3]} 33... Rxc2+ {[%clk 0:00:51.7]} 34. Ke3 {[%clk 0:00:53.6]} 34... Rh2
{[%clk 0:00:51]} 35. h5 {[%clk 0:00:50.8]} 35... b4 {[%clk 0:00:50.4]} 36. f4
{[%clk 0:00:51.3]} 36... exf4+ {[%clk 0:00:48.7]} 37. Kxf4 {[%clk 0:00:51.8]}
37... b3 {[%clk 0:00:48.9]} 38. Kg3 {[%clk 0:00:51.7]} 38... Rh1 {[%clk
0:00:47.9]} 39. Kg2 {[%clk 0:00:48.3]} 39... b2 {[%clk 0:00:46]} 40. Kxh1 {[%clk
0:00:47.9]} 40... b1=Q+ {[%clk 0:00:46.1]} 41. Kg2 {[%clk 0:00:48.2]} 41...
Qxe4+ {[%clk 0:00:46]} 0-1

[Event "Late-Titled-Tuesday-Blitz-May-07-2024"]
[Site "Chess.com"]
[Date "2024.05.07"]
[Round "11"]
[White "Alex_Sahakyan2006"]
[Black "TanitoluwaAps116"]
[Result "1-0"]
[WhiteElo "2856"]
[BlackElo "2746"]
[TimeControl "180+1"]
[EndTime "16:05:56 PDT"]
[Termination "Alex_Sahakyan2006 won by resignation"]

1. e4 {[%clk 0:03:00.9]} 1... c5 {[%clk 0:02:59.1]} 2. Nf3 {[%clk 0:03:00.9]}
2... e6 {[%clk 0:02:58.1]} 3. b3 {[%clk 0:02:52.6]} 3... Nc6 {[%clk 0:02:54.6]}
4. Bb2 {[%clk 0:02:51.1]} 4... d5 {[%clk 0:02:54]} 5. Bb5 {[%clk 0:02:49.7]}
5... Nf6 {[%clk 0:02:32.1]} 6. exd5 {[%clk 0:02:45.5]} 6... exd5 {[%clk
0:02:31.2]} 7. O-O {[%clk 0:02:37.7]} 7... Bd6 {[%clk 0:02:23.3]} 8. Re1+ {[%clk
0:02:35.3]} 8... Be6 {[%clk 0:02:21.1]} 9. d4 {[%clk 0:02:30.9]} 9... O-O {[%clk
0:02:17.1]} 10. dxc5 {[%clk 0:02:31.2]} 10... Bxc5 {[%clk 0:02:18]} 11. Bxc6
{[%clk 0:02:15.9]} 11... bxc6 {[%clk 0:02:16.9]} 12. Nc3 {[%clk 0:02:07.4]}
12... Ng4 {[%clk 0:02:12.1]} 13. Re2 {[%clk 0:02:01.5]} 13... Re8 {[%clk
0:01:59.3]} 14. Na4 {[%clk 0:01:55.7]} 14... Bd6 {[%clk 0:01:53.4]} 15. Qd4
{[%clk 0:01:39.9]} 15... f6 {[%clk 0:01:33.1]} 16. Rxe6 {[%clk 0:01:39.3]} 16...
Rxe6 {[%clk 0:01:26.9]} 17. Qxg4 {[%clk 0:01:39.4]} 17... Re4 {[%clk 0:01:26.4]}
18. Qf5 {[%clk 0:01:34.3]} 18... g6 {[%clk 0:01:13.6]} 19. Qxf6 {[%clk
0:01:27.7]} 19... Qxf6 {[%clk 0:01:14.5]} 20. Bxf6 {[%clk 0:01:28]} 20... Rf8
{[%clk 0:01:13.5]} 21. Bb2 {[%clk 0:01:18.5]} 21... Re2 {[%clk 0:01:07.3]} 22.
Rc1 {[%clk 0:01:13.5]} 22... Bf4 {[%clk 0:01:00.7]} 23. Kf1 {[%clk 0:01:12.7]}
23... Re7 {[%clk 0:00:31.9]} 24. Re1 {[%clk 0:01:10.7]} 24... Ref7 {[%clk
0:00:31.7]} 25. Ba3 {[%clk 0:01:07.3]} 25... Rd8 {[%clk 0:00:27.4]} 26. Re7
{[%clk 0:01:01.4]} 26... Rf5 {[%clk 0:00:19.8]} 27. Nd4 {[%clk 0:00:55]} 27...
Rf6 {[%clk 0:00:18.9]} 28. Ne6 {[%clk 0:00:52.9]} 1-0

[Event "Late-Titled-Tuesday-Blitz-May-07-2024"]
[Site "Chess.com"]
[Date "2024.05.07"]
[Round "11"]
[White "Der_Balak_3Halak"]
[Black "Mikhal867"]
[Result "1-0"]
[WhiteElo "2409"]
[BlackElo "2519"]
[TimeControl "180+1"]
[EndTime "16:06:07 PDT"]
[Termination "Der_Balak_3Halak won by checkmate"]

1. e4 {[%clk 0:02:56.8]} 1... g6 {[%clk 0:02:59.2]} 2. h4 {[%clk 0:02:56.5]}
2... d5 {[%clk 0:02:55.7]} 3. exd5 {[%clk 0:02:55.3]} 3... Nf6 {[%clk 0:02:54]}
4. c4 {[%clk 0:02:54.5]} 4... c6 {[%clk 0:02:54]} 5. dxc6 {[%clk 0:02:53.2]}
5... Nxc6 {[%clk 0:02:53.8]} 6. Nc3 {[%clk 0:02:53.2]} 6... Bg7 {[%clk
0:02:46.1]} 7. Nf3 {[%clk 0:02:53]} 7... Bg4 {[%clk 0:02:44.8]} 8. Be2 {[%clk
0:02:52.8]} 8... e5 {[%clk 0:02:24.7]} 9. O-O {[%clk 0:02:48.3]} 9... Qd7 {[%clk
0:02:04.7]} 10. d3 {[%clk 0:02:40.6]} 10... O-O-O {[%clk 0:02:04.3]} 11. Be3
{[%clk 0:02:30.4]} 11... Rhe8 {[%clk 0:01:45.5]} 12. Rb1 {[%clk 0:02:17.7]}
12... Kb8 {[%clk 0:01:42.1]} 13. b4 {[%clk 0:02:16.4]} 13... Bxf3 {[%clk
0:01:34.4]} 14. Bxf3 {[%clk 0:02:08.7]} 14... Qxd3 {[%clk 0:01:34.1]} 15. Qa4
{[%clk 0:01:42.2]} 15... e4 {[%clk 0:01:19.5]} 16. Bf4+ {[%clk 0:01:36.9]} 16...
Ka8 {[%clk 0:01:12.6]} 17. Nb5 {[%clk 0:01:36.6]} 17... exf3 {[%clk 0:00:44.8]}
18. Nc7+ {[%clk 0:01:34.9]} 18... Kb8 {[%clk 0:00:44.9]} 19. Nxe8+ {[%clk
0:01:11.9]} 19... Kc8 {[%clk 0:00:44.3]} 20. Rbd1 {[%clk 0:01:03.8]} 20... Qxc4
{[%clk 0:00:23.4]} 21. Nd6+ {[%clk 0:01:03.9]} 21... Rxd6 {[%clk 0:00:20.7]} 22.
Bxd6 {[%clk 0:01:04.8]} 22... Qg4 {[%clk 0:00:18]} 23. Bg3 {[%clk 0:01:02.1]}
23... Nh5 {[%clk 0:00:16.6]} 24. Qb3 {[%clk 0:00:48.5]} 24... Nxg3 {[%clk
0:00:15.6]} 25. fxg3 {[%clk 0:00:49.4]} 25... fxg2 {[%clk 0:00:13.8]} 26. Kxg2
{[%clk 0:00:50.3]} 26... Qe2+ {[%clk 0:00:12.3]} 27. Rf2 {[%clk 0:00:46.9]}
27... Qe4+ {[%clk 0:00:12]} 28. Qf3 {[%clk 0:00:47]} 28... Qxf3+ {[%clk
0:00:11.4]} 29. Rxf3 {[%clk 0:00:46.5]} 29... f5 {[%clk 0:00:11.6]} 30. b5
{[%clk 0:00:44.7]} 30... Ne5 {[%clk 0:00:10.9]} 31. Rc3+ {[%clk 0:00:44.4]}
31... Kb8 {[%clk 0:00:09.9]} 32. Rd8# {[%clk 0:00:44.2]} 1-0